[Event "Live Chess"]
[Site "Chess.com"]
[Date "2024.06.02"]
[Round "-"]
[White "KyryloPoluliakh"]
[Black "MaksymYurii"]
[Result "0-1"]
[WhiteElo "1518"]
[BlackElo "997"]
[TimeControl "300"]
[EndTime "1:35:02 PDT"]
[Termination "MaksymYurii won by checkmate"]

1. c4 {[%clk 0:04:58.7]} 1... e5 {[%clk 0:04:58.8]} 2. Nc3 {[%clk 0:04:58.3]}
2... Nc6 {[%clk 0:04:56]} 3. g3 {[%clk 0:04:57.9]} 3... d6 {[%clk 0:04:54]} 4.
Bg2 {[%clk 0:04:57.4]} 4... Nf6 {[%clk 0:04:50.4]} 5. e3 {[%clk 0:04:56.8]} 5...
Be7 {[%clk 0:04:49.6]} 6. Nge2 {[%clk 0:04:56.2]} 6... O-O {[%clk 0:04:48.6]} 7.
d4 {[%clk 0:04:55.8]} 7... exd4 {[%clk 0:04:39.5]} 8. exd4 {[%clk 0:04:55.2]}
8... d5 {[%clk 0:04:37]} 9. Nxd5 {[%clk 0:04:51.7]} 9... Nxd5 {[%clk 0:04:34.9]}
10. Bxd5 {[%clk 0:04:51]} 10... Be6 {[%clk 0:04:31.2]} 11. Bxe6 {[%clk
0:04:48.5]} 11... fxe6 {[%clk 0:04:29.2]} 12. O-O {[%clk 0:04:47.3]} 12... Bf6
{[%clk 0:04:05.9]} 13. Be3 {[%clk 0:04:43.5]} 13... Ne7 {[%clk 0:04:02.6]} 14.
Qb3 {[%clk 0:04:36.2]} 14... Nf5 {[%clk 0:03:56.3]} 15. Qxb7 {[%clk 0:04:14.6]}
15... Nxd4 {[%clk 0:03:47.3]} 16. Nxd4 {[%clk 0:04:09.1]} 16... Bxd4 {[%clk
0:03:45.8]} 17. Bxd4 {[%clk 0:04:06]} 17... Qxd4 {[%clk 0:03:39.4]} 18. Qc6
{[%clk 0:04:03.6]} 18... Qxb2 {[%clk 0:03:33.1]} 19. Qxe6+ {[%clk 0:03:59.4]}
19... Kh8 {[%clk 0:03:30.2]} 20. Qc6 {[%clk 0:03:56.6]} 20... Rac8 {[%clk
0:03:24.2]} 21. Qc5 {[%clk 0:03:51.7]} 21... a5 {[%clk 0:03:15.6]} 22. Qxa5
{[%clk 0:03:47.1]} 22... Rxf2 {[%clk 0:03:12.2]} 23. Rxf2 {[%clk 0:03:41.3]}
23... Qxa1+ {[%clk 0:03:09.3]} 24. Kg2 {[%clk 0:03:40.1]} 24... Qd4 {[%clk
0:02:43.4]} 25. c5 {[%clk 0:03:31.2]} 25... Qd5+ {[%clk 0:02:38.6]} 26. Kg1
{[%clk 0:03:26.9]} 26... Rb8 {[%clk 0:02:28.5]} 27. Qe1 {[%clk 0:03:05]} 27...
Qxc5 {[%clk 0:02:13.7]} 28. Kg2 {[%clk 0:03:00.7]} 28... Qd5+ {[%clk 0:02:07.3]}
29. Kg1 {[%clk 0:02:57.1]} 29... Qc5 {[%clk 0:02:03.1]} 30. a4 {[%clk
0:02:48.4]} 30... h6 {[%clk 0:01:50.6]} 31. Kh1 {[%clk 0:02:44.1]} 31... Qd5+
{[%clk 0:01:47.3]} 32. Rg2 {[%clk 0:02:40]} 32... Rb2 {[%clk 0:01:43.1]} 33. Qf1
{[%clk 0:02:30.5]} 33... Ra2 {[%clk 0:01:31.7]} 34. a5 {[%clk 0:02:24]} 34...
Rxa5 {[%clk 0:01:25.5]} 35. Qf8+ {[%clk 0:02:21.9]} 35... Kh7 {[%clk 0:01:22.5]}
36. Qf1 {[%clk 0:02:19.7]} 36... Ra2 {[%clk 0:01:18.4]} 37. h3 {[%clk
0:02:14.8]} 37... Rxg2 {[%clk 0:01:16.1]} 38. Qxg2 {[%clk 0:02:12.7]} 38...
Qxg2+ {[%clk 0:01:15.1]} 39. Kxg2 {[%clk 0:02:12.3]} 39... Kg6 {[%clk
0:01:14.4]} 40. Kf3 {[%clk 0:02:11.7]} 40... Kf5 {[%clk 0:01:13.7]} 41. Ke3
{[%clk 0:02:10.5]} 41... Ke5 {[%clk 0:01:12.8]} 42. Kd3 {[%clk 0:02:09.6]} 42...
Kd5 {[%clk 0:01:11.5]} 43. Kc3 {[%clk 0:02:08.5]} 43... c5 {[%clk 0:01:10.9]}
44. g4 {[%clk 0:02:07.5]} 44... g6 {[%clk 0:01:09]} 45. h4 {[%clk 0:02:06.5]}
45... g5 {[%clk 0:01:07.2]} 46. hxg5 {[%clk 0:02:02.6]} 46... hxg5 {[%clk
0:01:05.8]} 47. Kd3 {[%clk 0:02:02.2]} 47... c4+ {[%clk 0:01:04]} 48. Kc3 {[%clk
0:02:01.6]} 48... Ke4 {[%clk 0:01:02.4]} 49. Kxc4 {[%clk 0:02:00.4]} 49... Kf4
{[%clk 0:01:01.8]} 50. Kd3 {[%clk 0:02:00.1]} 50... Kxg4 {[%clk 0:01:00.3]} 51.
Ke2 {[%clk 0:01:58.7]} 51... Kf4 {[%clk 0:00:59.3]} 52. Kf2 {[%clk 0:01:57.9]}
52... g4 {[%clk 0:00:57.9]} 53. Kg2 {[%clk 0:01:56.6]} 53... Kg5 {[%clk
0:00:52.9]} 54. Kg3 {[%clk 0:01:55.1]} 54... Kf5 {[%clk 0:00:52]} 55. Kg2 {[%clk
0:01:53.4]} 55... Kf4 {[%clk 0:00:51.2]} 56. Kf2 {[%clk 0:01:52.3]} 56... g3+
{[%clk 0:00:50.3]} 57. Kg2 {[%clk 0:01:50.3]} 57... Kg4 {[%clk 0:00:49.4]} 58.
Kg1 {[%clk 0:01:44.1]} 58... Kf3 {[%clk 0:00:48.3]} 59. Kf1 {[%clk 0:01:42.8]}
59... Kg4 {[%clk 0:00:44.4]} 60. Kg2 {[%clk 0:01:41.7]} 60... Kh4 {[%clk
0:00:40.8]} 61. Kf1 {[%clk 0:01:40.3]} 61... Kh3 {[%clk 0:00:39.7]} 62. Kg1
{[%clk 0:01:39.2]} 62... g2 {[%clk 0:00:36.7]} 63. Kf2 {[%clk 0:01:38.1]} 63...
Kh2 {[%clk 0:00:35.7]} 64. Kf3 {[%clk 0:01:36.8]} 64... g1=Q {[%clk 0:00:34.4]}
65. Ke4 {[%clk 0:01:35.8]} 65... Kg3 {[%clk 0:00:33.3]} 66. Kd3 {[%clk
0:01:34.2]} 66... Kf3 {[%clk 0:00:32.5]} 67. Kc4 {[%clk 0:01:33.3]} 67... Qe3
{[%clk 0:00:30.4]} 68. Kd5 {[%clk 0:01:32.4]} 68... Kf4 {[%clk 0:00:29.7]} 69.
Kc4 {[%clk 0:01:30.4]} 69... Ke4 {[%clk 0:00:28.5]} 70. Kb5 {[%clk 0:01:28.4]}
70... Qd3+ {[%clk 0:00:27.5]} 71. Kc5 {[%clk 0:01:27]} 71... Ke5 {[%clk
0:00:26.4]} 72. Kc6 {[%clk 0:01:25.9]} 72... Qd5+ {[%clk 0:00:24.6]} 73. Kb6
{[%clk 0:01:24.7]} 73... Ke6 {[%clk 0:00:23.6]} 74. Kc7 {[%clk 0:01:23.5]} 74...
Ke7 {[%clk 0:00:22.3]} 75. Kb6 {[%clk 0:01:22.8]} 75... Kd7 {[%clk 0:00:21.3]}
76. Ka6 {[%clk 0:01:20.8]} 76... Kc7 {[%clk 0:00:19.5]} 77. Ka7 {[%clk
0:01:19.7]} 77... Qa5# {[%clk 0:00:18.2]} 0-1

[Event "Live Chess"]
[Site "Chess.com"]
[Date "2024.06.02"]
[Round "-"]
[White "jimwad"]
[Black "TheSmoulderingMaster"]
[Result "0-1"]
[WhiteElo "1314"]
[BlackElo "1754"]
[TimeControl "300"]
[EndTime "1:35:22 PDT"]
[Termination "TheSmoulderingMaster won by resignation"]

1. d4 {[%clk 0:04:59.1]} 1... Nf6 {[%clk 0:04:57]} 2. c4 {[%clk 0:04:56.6]} 2...
g6 {[%clk 0:04:56]} 3. Nc3 {[%clk 0:04:55.4]} 3... Bg7 {[%clk 0:04:55.2]} 4. Bf4
{[%clk 0:04:53.9]} 4... O-O {[%clk 0:04:54.3]} 5. e3 {[%clk 0:04:52.3]} 5... d6
{[%clk 0:04:53.6]} 6. Nf3 {[%clk 0:04:50.4]} 6... Nbd7 {[%clk 0:04:52.8]} 7. Bd3
{[%clk 0:04:49]} 7... Re8 {[%clk 0:04:52.2]} 8. O-O {[%clk 0:04:47]} 8... c6
{[%clk 0:04:51.4]} 9. Rc1 {[%clk 0:04:37.9]} 9... e5 {[%clk 0:04:50.1]} 10. dxe5
{[%clk 0:04:36.5]} 10... dxe5 {[%clk 0:04:49.2]} 11. Bg5 {[%clk 0:04:33.7]}
11... h6 {[%clk 0:04:44.9]} 12. Bxf6 {[%clk 0:04:32.2]} 12... Nxf6 {[%clk
0:04:41.3]} 13. Be2 {[%clk 0:04:30.8]} 13... Qc7 {[%clk 0:04:38.3]} 14. b3
{[%clk 0:04:26.1]} 14... e4 {[%clk 0:04:26.3]} 15. Nd4 {[%clk 0:04:24.1]} 15...
Be6 {[%clk 0:04:19.3]} 16. Nxe6 {[%clk 0:04:22]} 16... Rxe6 {[%clk 0:04:17.2]}
17. Bg4 {[%clk 0:04:13.6]} 17... Re5 {[%clk 0:04:13.4]} 18. Qc2 {[%clk
0:04:03.7]} 18... Nxg4 {[%clk 0:04:10.2]} 19. Nxe4 {[%clk 0:04:02.2]} 19... Qe7
{[%clk 0:04:04.5]} 20. Ng3 {[%clk 0:03:53.8]} 20... Qh4 {[%clk 0:04:00.6]} 21.
h3 {[%clk 0:03:44.9]} 21... Nxe3 {[%clk 0:03:53.3]} 0-1

[Event "Live Chess"]
[Site "Chess.com"]
[Date "2024.06.02"]
[Round "-"]
[White "JohanKjeldahl"]
[Black "matt1979"]
[Result "1-0"]
[WhiteElo "1830"]
[BlackElo "1408"]
[TimeControl "300"]
[EndTime "1:35:33 PDT"]
[Termination "JohanKjeldahl won by checkmate"]

1. e4 {[%clk 0:04:57]} 1... d6 {[%clk 0:04:58.4]} 2. d4 {[%clk 0:04:55.6]} 2...
Nf6 {[%clk 0:04:57]} 3. Nc3 {[%clk 0:04:54.3]} 3... Nbd7 {[%clk 0:04:55.6]} 4.
f4 {[%clk 0:04:53.3]} 4... e5 {[%clk 0:04:54.5]} 5. Nf3 {[%clk 0:04:48.7]} 5...
exd4 {[%clk 0:04:53.4]} 6. Nxd4 {[%clk 0:04:46.7]} 6... c5 {[%clk 0:04:41.9]} 7.
Nf3 {[%clk 0:04:42]} 7... Be7 {[%clk 0:04:34.1]} 8. Bc4 {[%clk 0:04:40.6]} 8...
O-O {[%clk 0:04:32.5]} 9. O-O {[%clk 0:04:39.3]} 9... a6 {[%clk 0:04:29.8]} 10.
a4 {[%clk 0:04:36.9]} 10... Nb6 {[%clk 0:04:22.7]} 11. Ba2 {[%clk 0:04:30.4]}
11... Bg4 {[%clk 0:04:20.4]} 12. h3 {[%clk 0:04:27]} 12... Bxf3 {[%clk
0:04:16.8]} 13. Qxf3 {[%clk 0:04:25.9]} 13... Nbd7 {[%clk 0:04:03.3]} 14. Be3
{[%clk 0:04:22.7]} 14... Qc7 {[%clk 0:03:57.8]} 15. Rad1 {[%clk 0:04:18.7]}
15... b6 {[%clk 0:03:45.2]} 16. g4 {[%clk 0:04:15.6]} 16... Rae8 {[%clk
0:03:34.2]} 17. g5 {[%clk 0:04:14.3]} 17... Nxe4 {[%clk 0:03:27.2]} 18. Nxe4
{[%clk 0:04:10.6]} 18... d5 {[%clk 0:03:20.7]} 19. Rxd5 {[%clk 0:04:04.7]} 19...
Bd8 {[%clk 0:03:07.5]} 20. g6 {[%clk 0:03:53.1]} 20... hxg6 {[%clk 0:03:03.7]}
21. f5 {[%clk 0:03:33.7]} 21... gxf5 {[%clk 0:02:59.5]} 22. Rxf5 {[%clk
0:03:32.3]} 22... Ne5 {[%clk 0:02:55.1]} 23. Qg3 {[%clk 0:03:14.9]} 23... Qc6
{[%clk 0:02:45.7]} 24. Ng5 {[%clk 0:02:57.1]} 24... Bxg5 {[%clk 0:02:40.2]} 25.
Rxg5 {[%clk 0:02:52.5]} 25... g6 {[%clk 0:02:26.1]} 26. Bf4 {[%clk 0:02:44.6]}
26... Qxa4 {[%clk 0:01:34.4]} 27. Bxe5 {[%clk 0:02:35.5]} 27... Qxa2 {[%clk
0:01:32.1]} 28. Rxg6+ {[%clk 0:02:34.1]} 28... fxg6 {[%clk 0:01:24.4]} 29. Qxg6#
{[%clk 0:02:32.3]} 1-0

[Event "Live Chess"]
[Site "Chess.com"]
[Date "2024.06.02"]
[Round "-"]
[White "EdenHazard8"]
[Black "Duke_of_Bebington"]
[Result "1-0"]
[WhiteElo "2201"]
[BlackElo "1664"]
[TimeControl "300"]
[EndTime "1:35:36 PDT"]
[Termination "EdenHazard8 won by resignation"]

1. c4 {[%clk 0:04:57.8]} 1... c6 {[%clk 0:04:58.8]} 2. Nc3 {[%clk 0:04:55.9]}
2... d5 {[%clk 0:04:57.5]} 3. cxd5 {[%clk 0:04:55.8]} 3... cxd5 {[%clk
0:04:56.4]} 4. d4 {[%clk 0:04:55.5]} 4... e5 {[%clk 0:04:55.4]} 5. e3 {[%clk
0:04:41.7]} 5... Nc6 {[%clk 0:04:51]} 6. Bb5 {[%clk 0:04:39.4]} 6... e4 {[%clk
0:04:47.3]} 7. Nge2 {[%clk 0:04:37.5]} 7... a6 {[%clk 0:04:44.2]} 8. Ba4 {[%clk
0:04:35.6]} 8... Nf6 {[%clk 0:04:40.4]} 9. h3 {[%clk 0:04:32.6]} 9... Bd6 {[%clk
0:04:39.4]} 10. O-O {[%clk 0:04:31.5]} 10... O-O {[%clk 0:04:38.7]} 11. a3
{[%clk 0:04:17.6]} 11... Na5 {[%clk 0:04:30.2]} 12. b4 {[%clk 0:04:15.4]} 12...
Nc4 {[%clk 0:04:28.7]} 13. Bb3 {[%clk 0:04:14.5]} 13... b5 {[%clk 0:04:27.3]}
14. a4 {[%clk 0:04:09.8]} 14... Bd7 {[%clk 0:04:25.2]} 15. Bxc4 {[%clk 0:03:58]}
15... bxc4 {[%clk 0:04:22.7]} 16. b5 {[%clk 0:03:55.9]} 16... axb5 {[%clk
0:04:21.5]} 17. Bd2 {[%clk 0:03:31.6]} 17... bxa4 {[%clk 0:04:14]} 18. Nxa4
{[%clk 0:03:24.6]} 18... Qc7 {[%clk 0:04:04.3]} 19. Nc5 {[%clk 0:03:10]} 19...
Bxc5 {[%clk 0:04:02.5]} 20. dxc5 {[%clk 0:03:09.9]} 20... Rfc8 {[%clk
0:03:46.7]} 21. Bc3 {[%clk 0:03:06.3]} 21... Qxc5 {[%clk 0:03:40.5]} 22. Nf4
{[%clk 0:02:54.5]} 22... Be6 {[%clk 0:03:34.3]} 23. Rb1 {[%clk 0:02:39]} 23...
Ra3 {[%clk 0:03:20.6]} 24. Bb4 {[%clk 0:02:36.8]} 24... Qa7 {[%clk 0:03:18.8]}
25. Bxa3 {[%clk 0:02:35.4]} 25... Qxa3 {[%clk 0:03:18.7]} 26. Nxe6 {[%clk
0:02:30.5]} 26... fxe6 {[%clk 0:03:17.1]} 27. Qd4 {[%clk 0:02:28.1]} 27... c3
{[%clk 0:03:12.8]} 28. Rfc1 {[%clk 0:02:24.3]} 28... c2 {[%clk 0:03:06.8]} 29.
Ra1 {[%clk 0:02:20.9]} 29... Qd3 {[%clk 0:02:55.8]} 30. Qe5 {[%clk 0:02:12.7]}
30... Rf8 {[%clk 0:02:43.6]} 31. Qxe6+ {[%clk 0:02:02.8]} 31... Kh8 {[%clk
0:02:42.8]} 32. Qe7 {[%clk 0:01:56.5]} 32... Re8 {[%clk 0:02:37]} 33. Qc7 {[%clk
0:01:48.7]} 33... Rg8 {[%clk 0:02:34.7]} 34. Qxc2 {[%clk 0:01:45.1]} 34... Qb5
{[%clk 0:02:32.5]} 35. Rab1 {[%clk 0:01:42.6]} 35... Qd7 {[%clk 0:02:30.3]} 36.
Qc5 {[%clk 0:01:38.8]} 36... Qf5 {[%clk 0:02:27.6]} 37. Qd4 {[%clk 0:01:35.1]}
37... h5 {[%clk 0:02:22.7]} 38. Rc6 {[%clk 0:01:25.9]} 38... Ne8 {[%clk
0:02:09.1]} 39. Rh6+ {[%clk 0:01:23.5]} 39... Qh7 {[%clk 0:02:05]} 40. Rxh7+
{[%clk 0:01:22.3]} 40... Kxh7 {[%clk 0:02:04.9]} 41. Qxd5 {[%clk 0:01:21.3]} 1-0

[Event "Live Chess"]
[Site "Chess.com"]
[Date "2024.06.02"]
[Round "-"]
[White "seasidecastle27"]
[Black "chessgoatpawel"]
[Result "0-1"]
[WhiteElo "1954"]
[BlackElo "2056"]
[TimeControl "300"]
[EndTime "1:35:47 PDT"]
[Termination "chessgoatpawel won by checkmate"]

1. d4 {[%clk 0:04:57.2]} 1... c6 {[%clk 0:04:56.8]} 2. Nf3 {[%clk 0:04:56]} 2...
d5 {[%clk 0:04:56.7]} 3. Bf4 {[%clk 0:04:54.4]} 3... g6 {[%clk 0:04:54.8]} 4. e3
{[%clk 0:04:53.5]} 4... Bg7 {[%clk 0:04:54.3]} 5. Nbd2 {[%clk 0:04:52.6]} 5...
Nf6 {[%clk 0:04:53.8]} 6. Bd3 {[%clk 0:04:51.2]} 6... O-O {[%clk 0:04:53.4]} 7.
Qe2 {[%clk 0:04:49.1]} 7... c5 {[%clk 0:04:52.8]} 8. c3 {[%clk 0:04:47.6]} 8...
Nc6 {[%clk 0:04:50.1]} 9. h4 {[%clk 0:04:43.6]} 9... cxd4 {[%clk 0:04:49.3]} 10.
exd4 {[%clk 0:04:41.2]} 10... Re8 {[%clk 0:04:44.8]} 11. h5 {[%clk 0:04:36.4]}
11... Nxh5 {[%clk 0:04:43.2]} 12. Rxh5 {[%clk 0:04:32.1]} 12... gxh5 {[%clk
0:04:43.1]} 13. Ng5 {[%clk 0:04:27.3]} 13... e5 {[%clk 0:04:21.3]} 14. Qxh5
{[%clk 0:04:11.9]} 14... exf4+ {[%clk 0:04:02.4]} 15. Kf1 {[%clk 0:04:09.8]}
15... Be6 {[%clk 0:03:37.2]} 16. Re1 {[%clk 0:03:43.3]} 16... Qf6 {[%clk
0:03:15.1]} 17. Qxh7+ {[%clk 0:03:12]} 17... Kf8 {[%clk 0:03:10]} 18. Qh4 {[%clk
0:03:01.2]} 18... Qh6 {[%clk 0:02:56.4]} 19. Qxf4 {[%clk 0:02:37.7]} 19... Qh1+
{[%clk 0:02:53.1]} 20. Ke2 {[%clk 0:02:34.8]} 20... Bg4# {[%clk 0:02:52.6]} 0-1

[Event "Live Chess"]
[Site "Chess.com"]
[Date "2024.06.02"]
[Round "-"]
[White "JanMur7"]
[Black "WeakOldFinished"]
[Result "1-0"]
[WhiteElo "2279"]
[BlackElo "2130"]
[TimeControl "300"]
[EndTime "1:36:04 PDT"]
[Termination "JanMur7 won by resignation"]

1. c4 {[%clk 0:04:59]} 1... e5 {[%clk 0:04:58.9]} 2. Nc3 {[%clk 0:04:57.3]} 2...
Bb4 {[%clk 0:04:56.8]} 3. Qc2 {[%clk 0:04:55.2]} 3... Nc6 {[%clk 0:04:54]} 4. g3
{[%clk 0:04:46.5]} 4... d6 {[%clk 0:04:42.5]} 5. Nf3 {[%clk 0:04:44.3]} 5...
Bxc3 {[%clk 0:04:37.1]} 6. bxc3 {[%clk 0:04:42.8]} 6... f5 {[%clk 0:04:35.6]} 7.
d3 {[%clk 0:04:37.2]} 7... Nf6 {[%clk 0:04:33.8]} 8. Bg2 {[%clk 0:04:34.2]} 8...
O-O {[%clk 0:04:33.1]} 9. O-O {[%clk 0:04:32.1]} 9... Qe8 {[%clk 0:04:32.7]} 10.
Rb1 {[%clk 0:04:25.6]} 10... Qh5 {[%clk 0:04:17.9]} 11. Bg5 {[%clk 0:03:49]}
11... Rb8 {[%clk 0:03:54.1]} 12. Bxf6 {[%clk 0:03:46.3]} 12... Rxf6 {[%clk
0:03:53.4]} 13. h4 {[%clk 0:03:18.7]} 13... Bd7 {[%clk 0:03:49.4]} 14. Qb3
{[%clk 0:03:12.1]} 14... Kh8 {[%clk 0:03:41.1]} 15. c5 {[%clk 0:03:01.6]} 15...
dxc5 {[%clk 0:03:33.5]} 16. Qd5 {[%clk 0:02:59.8]} 16... Rd6 {[%clk 0:03:22.2]}
17. Qxc5 {[%clk 0:02:43.6]} 17... b6 {[%clk 0:03:21.2]} 18. Qe3 {[%clk 0:02:38]}
18... Re8 {[%clk 0:03:16.2]} 19. Qg5 {[%clk 0:02:32.3]} 19... Qf7 {[%clk
0:03:09.9]} 20. Qd2 {[%clk 0:02:17.5]} 20... h6 {[%clk 0:03:06.6]} 21. Qb2
{[%clk 0:02:05.9]} 21... e4 {[%clk 0:03:01.7]} 22. Nd4 {[%clk 0:02:01]} 22...
Nxd4 {[%clk 0:02:47.5]} 23. cxd4 {[%clk 0:02:00.9]} 23... exd3 {[%clk
0:02:46.2]} 24. exd3 {[%clk 0:01:58.5]} 24... f4 {[%clk 0:02:45.3]} 25. Rbe1
{[%clk 0:01:54.1]} 25... Rf6 {[%clk 0:02:34.4]} 26. Rxe8+ {[%clk 0:01:50.7]}
26... Qxe8 {[%clk 0:02:33.6]} 27. Qc3 {[%clk 0:01:47.2]} 27... fxg3 {[%clk
0:02:16.5]} 28. fxg3 {[%clk 0:01:43.7]} 28... Qe3+ {[%clk 0:02:14.8]} 29. Kh2
{[%clk 0:01:39.7]} 29... Rxf1 {[%clk 0:02:11.5]} 30. Bxf1 {[%clk 0:01:39.6]}
30... Qf2+ {[%clk 0:01:57.3]} 31. Bg2 {[%clk 0:01:37.5]} 31... c5 {[%clk
0:01:53.9]} 32. d5 {[%clk 0:01:28]} 32... Bg4 {[%clk 0:01:43.2]} 33. d4 {[%clk
0:00:50.2]} 33... Qxd4 {[%clk 0:01:34.4]} 34. Qe1 {[%clk 0:00:47.7]} 34... Bf5
{[%clk 0:01:13.5]} 35. Qe7 {[%clk 0:00:41.9]} 35... Qf2 {[%clk 0:01:08.8]} 36.
d6 {[%clk 0:00:39.4]} 36... Qd4 {[%clk 0:01:07.2]} 37. Qf8+ {[%clk 0:00:37.4]}
1-0

[Event "Live Chess"]
[Site "Chess.com"]
[Date "2024.06.02"]
[Round "-"]
[White "GerardATHart"]
[Black "missedJariChance"]
[Result "0-1"]
[WhiteElo "1368"]
[BlackElo "1351"]
[TimeControl "300"]
[EndTime "1:36:16 PDT"]
[Termination "missedJariChance won by resignation"]

1. e4 {[%clk 0:04:55.8]} 1... c5 {[%clk 0:04:57.4]} 2. Nc3 {[%clk 0:04:53.7]}
2... e6 {[%clk 0:04:54.7]} 3. d4 {[%clk 0:04:52]} 3... cxd4 {[%clk 0:04:52.7]}
4. Qxd4 {[%clk 0:04:51.9]} 4... Nc6 {[%clk 0:04:51.1]} 5. Qd2 {[%clk 0:04:50.9]}
5... Bb4 {[%clk 0:04:40.1]} 6. b3 {[%clk 0:04:49.1]} 6... Nf6 {[%clk 0:04:38]}
7. f3 {[%clk 0:04:47.2]} 7... O-O {[%clk 0:04:33.1]} 8. Bb2 {[%clk 0:04:45.7]}
8... a6 {[%clk 0:04:24.5]} 9. O-O-O {[%clk 0:04:43.6]} 9... Qc7 {[%clk
0:04:20.9]} 10. Nge2 {[%clk 0:04:34.5]} 10... Rd8 {[%clk 0:04:12.7]} 11. a3
{[%clk 0:04:22.7]} 11... Ba5 {[%clk 0:04:08.1]} 12. b4 {[%clk 0:04:21.1]} 12...
Bb6 {[%clk 0:04:06.1]} 13. b5 {[%clk 0:04:01.3]} 13... Ne5 {[%clk 0:03:46.7]}
14. f4 {[%clk 0:02:19]} 14... Nc4 {[%clk 0:03:42]} 15. Qd3 {[%clk 0:02:12]}
15... Nxb2 {[%clk 0:03:00.5]} 16. Kxb2 {[%clk 0:01:58]} 16... axb5 {[%clk
0:02:40.6]} 17. Nxb5 {[%clk 0:01:47.7]} 17... Qc5 {[%clk 0:02:32.4]} 18. Nd6
{[%clk 0:01:39.3]} 18... h6 {[%clk 0:01:51.4]} 19. e5 {[%clk 0:01:37.3]} 19...
Nd5 {[%clk 0:01:41.8]} 20. Qb5 {[%clk 0:01:01.1]} 20... Qxa3+ {[%clk 0:01:30]}
21. Kb1 {[%clk 0:00:56.7]} 21... Qa2+ {[%clk 0:01:24.7]} 22. Kc1 {[%clk
0:00:55.2]} 22... Be3+ {[%clk 0:01:22.5]} 23. Rd2 {[%clk 0:00:50.7]} 23... Qa1+
{[%clk 0:01:07.6]} 24. Qb1 {[%clk 0:00:46.7]} 24... Qxb1+ {[%clk 0:01:05.8]} 25.
Kxb1 {[%clk 0:00:44.9]} 25... Bxd2 {[%clk 0:01:04.5]} 26. Nd4 {[%clk 0:00:37.2]}
26... Nc3+ {[%clk 0:00:54.3]} 0-1

[Event "Live Chess"]
[Site "Chess.com"]
[Date "2024.06.02"]
[Round "-"]
[White "Keithdfg"]
[Black "Crowded_House"]
[Result "1-0"]
[WhiteElo "1759"]
[BlackElo "1654"]
[TimeControl "300"]
[EndTime "1:36:19 PDT"]
[Termination "Keithdfg won by resignation"]

1. Nf3 {[%clk 0:04:57.3]} 1... e6 {[%clk 0:04:57.8]} 2. d4 {[%clk 0:04:56]} 2...
d5 {[%clk 0:04:57.2]} 3. Bf4 {[%clk 0:04:54.6]} 3... c5 {[%clk 0:04:55.5]} 4. e3
{[%clk 0:04:52.4]} 4... Nc6 {[%clk 0:04:52.8]} 5. c3 {[%clk 0:04:51.3]} 5... Qb6
{[%clk 0:04:51.5]} 6. Qb3 {[%clk 0:04:49.9]} 6... Qxb3 {[%clk 0:04:47.8]} 7.
axb3 {[%clk 0:04:48.8]} 7... a6 {[%clk 0:04:45.3]} 8. Nbd2 {[%clk 0:04:47.6]}
8... Nf6 {[%clk 0:04:41.6]} 9. dxc5 {[%clk 0:04:40.7]} 9... Bxc5 {[%clk
0:04:38.7]} 10. b4 {[%clk 0:04:39.8]} 10... Bb6 {[%clk 0:04:26.2]} 11. b5 {[%clk
0:04:38.4]} 11... Ne7 {[%clk 0:04:07.2]} 12. Bd6 {[%clk 0:04:30.3]} 12... Bd7
{[%clk 0:04:02.7]} 13. Bd3 {[%clk 0:04:22.6]} 13... Nc8 {[%clk 0:03:41.7]} 14.
Bb4 {[%clk 0:04:13.8]} 14... Na7 {[%clk 0:03:18.2]} 15. bxa6 {[%clk 0:04:10.1]}
15... bxa6 {[%clk 0:03:15.1]} 16. Rxa6 {[%clk 0:04:07.8]} 16... Bc7 {[%clk
0:03:03.9]} 17. Bc5 {[%clk 0:04:00.9]} 17... Bc8 {[%clk 0:02:55.1]} 18. Rxa7
{[%clk 0:03:55.8]} 18... Rxa7 {[%clk 0:02:52]} 19. Bxa7 {[%clk 0:03:54.5]} 19...
Bb7 {[%clk 0:02:34]} 20. Bc5 {[%clk 0:03:52]} 20... Kd7 {[%clk 0:02:31.1]} 21.
O-O {[%clk 0:03:44.7]} 21... Ra8 {[%clk 0:02:28.8]} 22. b4 {[%clk 0:03:38.7]}
22... Bd6 {[%clk 0:02:19.5]} 23. Bxd6 {[%clk 0:03:36.1]} 23... Kxd6 {[%clk
0:02:19]} 24. c4 {[%clk 0:03:32.4]} 24... dxc4 {[%clk 0:02:17.2]} 25. Nxc4+
{[%clk 0:03:30.8]} 25... Kd7 {[%clk 0:02:15.8]} 26. Nb6+ {[%clk 0:03:29.2]} 1-0

[Event "Live Chess"]
[Site "Chess.com"]
[Date "2024.06.02"]
[Round "-"]
[White "MagnersCarlsberg2870"]
[Black "juniortay"]
[Result "0-1"]
[WhiteElo "1808"]
[BlackElo "2378"]
[TimeControl "300"]
[EndTime "1:36:28 PDT"]
[Termination "juniortay won by resignation"]

1. d4 {[%clk 0:04:57.6]} 1... d5 {[%clk 0:04:58.4]} 2. e3 {[%clk 0:04:56.5]}
2... c5 {[%clk 0:04:57.6]} 3. Bd3 {[%clk 0:04:54.9]} 3... Nc6 {[%clk 0:04:57]}
4. c3 {[%clk 0:04:54]} 4... Nf6 {[%clk 0:04:55.4]} 5. f4 {[%clk 0:04:53.1]} 5...
g6 {[%clk 0:04:48.8]} 6. Nf3 {[%clk 0:04:51.5]} 6... Bg7 {[%clk 0:04:48.5]} 7.
Nbd2 {[%clk 0:04:50.6]} 7... O-O {[%clk 0:04:47.6]} 8. Kf1 {[%clk 0:04:49.9]}
8... Bf5 {[%clk 0:04:41.3]} 9. Bxf5 {[%clk 0:04:48]} 9... gxf5 {[%clk
0:04:41.2]} 10. Qe1 {[%clk 0:04:45.3]} 10... Ne4 {[%clk 0:04:39.1]} 11. Nxe4
{[%clk 0:04:39]} 11... fxe4 {[%clk 0:04:37]} 12. Ng5 {[%clk 0:04:27.8]} 12... h6
{[%clk 0:04:34.6]} 13. Nh3 {[%clk 0:04:25.6]} 13... Kh7 {[%clk 0:04:31.2]} 14.
g3 {[%clk 0:04:24.8]} 14... f6 {[%clk 0:04:29]} 15. Qe2 {[%clk 0:04:20.8]} 15...
e5 {[%clk 0:04:27.3]} 16. Qh5 {[%clk 0:04:18.4]} 16... Qe8 {[%clk 0:04:24.2]}
17. Qf5+ {[%clk 0:04:15.2]} 17... Qg6 {[%clk 0:04:23.1]} 18. Qd7 {[%clk
0:04:13.9]} 18... Qf7 {[%clk 0:04:21.2]} 19. Qf5+ {[%clk 0:04:11.6]} 19... Kh8
{[%clk 0:04:18.1]} 20. Bd2 {[%clk 0:04:01.3]} 20... exd4 {[%clk 0:04:14.1]} 21.
exd4 {[%clk 0:03:58]} 21... cxd4 {[%clk 0:04:13.3]} 0-1